bitfinex-derivatives/quotes_ETHF0:USTF0_20260125
["timestamp","ask_amount","ask_price","bid_price","bid_amount"]
[1769306347710,0.0038534,2957.3,2956.4,0.23187108]
[1769306348007,3.96955941,2957.2,2956.4,0.23187108]
[1769306348208,0.0038534,2957.3,2956.4,0.23187108]
[1769306348403,3.9695085,2957.2,2956.4,0.23187108]
[1769306348604,0.0038534,2957.3,2956.4,0.23187108]
[1769306348804,3.96950904,2957.2,2956.4,0.23187108]
[1769306349006,0.0038534,2957.3,2956.4,0.23187108]
[1769306349210,3.96948522,2957.2,2956.4,0.23187108]
[1769306349408,0.0038534,2957.3,2956.4,0.23187108]
[1769306349610,3.96948114,2957.2,2956.4,0.23187108]
[1769306349811,0.0038534,2957.3,2956.4,0.23187108]
[1769306350011,3.96948114,2957.2,2956.4,0.23187108]
[1769306350212,0.0038534,2957.3,2956.4,0.23187108]
[1769306350413,3.96945139,2957.2,2956.4,0.23187108]
[1769306350713,0.0038534,2957.3,2956.4,0.23187108]
[1769306350913,3.9694547,2957.2,2956.4,0.23187108]
[1769306351103,0.0038534,2957.3,2956.4,0.23187108]
[1769306351306,3.96942828,2957.2,2956.4,0.23187108]
[1769306351510,0.0038534,2957.3,2956.4,0.23187108]
[1769306351812,3.96942852,2957.2,2956.4,0.23187108]
[1769306352014,0.0038534,2957.3,2956.4,0.23187108]
[1769306352317,3.9693983,2957.2,2956.4,0.23187108]
[1769306352611,0.0038534,2957.3,2956.4,0.23187108]
[1769306352813,3.96939884,2957.2,2956.4,0.23187108]
[1769306353008,0.0038534,2957.3,2956.4,0.23187108]
[1769306353208,3.96937004,2957.2,2956.4,0.23187108]
[1769306353412,0.0038534,2957.3,2956.4,0.23187108]
[1769306353616,3.96936977,2957.2,2956.4,0.23187108]
[1769306353913,0.0038534,2957.3,2956.4,0.23187108]
[1769306354114,3.9693703,2957.2,2956.4,0.23187108]
[1769306354315,0.0038534,2957.3,2956.4,0.23187108]
[1769306354614,3.96934289,2957.2,2956.4,0.23187108]
[1769306354915,0.0038534,2957.3,2956.4,0.23187108]
[1769306355116,3.96909914,2957.2,2956.4,0.23187108]
[1769306355316,0.0038534,2957.3,2956.4,0.23187108]
[1769306356916,3.9688789,2957.2,2956.4,0.23187108]
[1769306357116,0.0038534,2957.3,2956.4,0.23187108]
[1769306358116,3.96887828,2957.2,2956.4,0.23187108]
[1769306358319,0.0038534,2957.3,2956.4,0.23187108]
[1769306358616,3.96887828,2957.2,2956.4,0.23187108]
[1769306358817,0.0038534,2957.3,2956.4,0.23187108]
[1769306359116,3.96887828,2957.2,2956.4,0.23187108]
[1769306359309,0.0038534,2957.3,2956.4,0.23187108]
[1769306367826,3.96806107,2957.2,2956.4,0.23187108]
[1769306368032,0.0038534,2957.3,2956.4,0.23187108]
[1769306368232,3.96808807,2957.2,2956.4,0.23187108]
[1769306368431,0.0038534,2957.3,2956.4,0.23187108]
[1769306368731,3.9680906,2957.2,2956.4,0.23187108]
[1769306369031,0.0038534,2957.3,2956.4,0.23187108]
[1769306369232,3.96807765,2957.2,2956.4,0.23187108]
[1769306369530,0.0038534,2957.3,2956.4,0.23187108]
[1769306369732,3.96804468,2957.2,2956.4,0.23187108]
[1769306369933,0.0038534,2957.3,2956.4,0.23187108]
[1769306370133,3.96804173,2957.2,2956.4,0.23187108]
[1769306370337,0.0038534,2957.3,2956.4,0.23187108]
[1769306370535,3.96802335,2957.2,2956.4,0.23187108]
[1769306370735,0.0038534,2957.3,2956.4,0.23187108]
[1769306370933,3.96801756,2957.2,2956.4,0.23187108]
[1769306371236,0.0038534,2957.3,2956.4,0.23187108]
[1769306371440,3.96813733,2957.2,2956.4,0.23187108]
[1769306371638,0.0038534,2957.3,2956.4,0.23187108]
[1769306371837,3.96822235,2957.2,2956.4,0.23187108]
[1769306372040,0.0038534,2957.3,2956.4,0.23187108]
[1769306372238,3.96833677,2957.2,2956.4,0.23187108]
[1769306372433,0.0038534,2957.3,2956.4,0.23187108]
[1769306372633,3.96834007,2957.2,2956.4,0.23187108]
[1769306372829,0.0038534,2957.3,2956.4,0.23187108]
[1769306373038,3.96976872,2957.2,2956.4,0.23187108]
[1769306373241,0.0038534,2957.3,2956.4,0.23187108]
[1769306373437,3.97010867,2957.2,2956.4,0.23187108]
[1769306373639,0.0038534,2957.3,2956.4,0.23187108]
[1769306373840,3.97010932,2957.2,2956.4,0.23187108]
[1769306374029,0.0038534,2957.3,2956.4,0.23187108]
[1769306374235,3.97038335,2957.2,2956.4,0.23187108]
[1769306374441,0.0038534,2957.3,2956.4,0.23187108]
[1769306374634,3.97039018,2957.2,2956.4,0.23187108]
[1769306374834,0.0038534,2957.3,2956.4,0.23187108]
[1769306375039,3.97038494,2957.2,2956.4,0.23187108]
[1769306375241,0.0038534,2957.3,2956.4,0.23187108]
[1769306375443,3.97034129,2957.2,2956.4,0.23187108]
[1769306375638,0.0038534,2957.3,2956.4,0.23187108]
[1769306375841,3.97033547,2957.2,2956.4,0.23187108]
[1769306376042,0.0038534,2957.3,2956.4,0.23187108]
[1769306376241,3.97029503,2957.2,2956.4,0.23187108]
[1769306376541,0.0038534,2957.3,2956.4,0.23187108]
[1769306376839,3.97028807,2957.2,2956.4,0.23187108]
[1769306377041,0.0038534,2957.3,2956.4,0.23187108]
[1769306377341,3.97025568,2957.2,2956.4,0.23187108]
[1769306377641,0.0038534,2957.3,2956.4,0.23187108]
[1769306377842,3.97024941,2957.2,2956.4,0.23187108]
[1769306378040,0.0038534,2957.3,2956.4,0.23187108]
[1769306378241,3.97022116,2957.2,2956.4,0.23187108]
[1769306378443,0.0038534,2957.3,2956.4,0.23187108]
[1769306378643,3.97022201,2957.2,2956.4,0.23187108]
[1769306378843,0.0038534,2957.3,2956.4,0.23187108]
[1769306379043,3.9702062,2957.2,2956.4,0.23187108]
[1769306379244,0.0038534,2957.3,2956.4,0.23187108]
[1769306379442,3.97018036,2957.2,2956.4,0.23187108]
[1769306379642,0.0038534,2957.3,2956.4,0.23187108]
[1769306379843,3.97017961,2957.2,2956.4,0.23187108]
[1769306380044,0.0038534,2957.3,2956.4,0.23187108]
[1769306380241,3.97015648,2957.2,2956.4,0.23187108]
[1769306380441,0.0038534,2957.3,2956.4,0.23187108]
[1769306380643,3.97015648,2957.2,2956.4,0.23187108]
[1769306380843,0.0038534,2957.3,2956.4,0.23187108]
[1769306381046,3.97015648,2957.2,2956.4,0.23187108]
[1769306381249,0.0038534,2957.3,2956.4,0.23187108]
[1769306381451,3.97013287,2957.2,2956.4,0.23187108]
[1769306381650,0.0038534,2957.3,2956.4,0.23187108]
[1769306381853,3.9701345,2957.2,2956.4,0.23187108]
[1769306382052,0.0038534,2957.3,2956.4,0.23187108]
[1769306382253,3.97011553,2957.2,2956.4,0.23187108]
[1769306382454,0.0038534,2957.3,2956.4,0.23187108]
[1769306382650,3.97011553,2957.2,2956.4,0.23187108]
[1769306382850,0.0038534,2957.3,2956.4,0.23187108]
[1769306383054,3.97011579,2957.2,2956.4,0.23187108]
[1769306383251,0.0038534,2957.3,2956.4,0.23187108]
[1769306383453,3.97009976,2957.2,2956.4,0.23187108]
[1769306383650,0.0038534,2957.3,2956.4,0.23187108]
[1769306383853,3.97009976,2957.2,2956.4,0.23187108]
[1769306384049,0.0038534,2957.3,2956.4,0.23187108]
[1769306384246,3.97006498,2957.2,2956.4,0.23187108]
[1769306384446,0.0038534,2957.3,2956.4,0.23187108]
[1769306384651,3.97006579,2957.2,2956.4,0.23187108]
[1769306384851,0.0038534,2957.3,2956.4,0.23187108]
[1769306385051,3.97006548,2957.2,2956.4,0.23187108]
[1769306385252,0.0038534,2957.3,2956.4,0.23187108]
[1769306385452,3.97006004,2957.2,2956.4,0.23187108]
[1769306385752,0.0038534,2957.3,2956.4,0.23187108]
[1769306386052,3.97005997,2957.2,2956.4,0.23187108]
[1769306386253,0.0038534,2957.3,2956.4,0.23187108]
[1769306386443,3.97007716,2957.2,2956.4,0.23187108]
[1769306386649,0.0038534,2957.3,2956.4,0.23187108]
[1769306386852,3.97007743,2957.2,2956.4,0.23187108]
[1769306387052,0.0038534,2957.3,2956.4,0.23187108]
[1769306387247,3.97009388,2957.2,2956.4,0.23187108]
[1769306387448,0.0038534,2957.3,2956.4,0.23187108]
[1769306387646,3.97009479,2957.2,2956.4,0.23187108]
[1769306387948,0.0038534,2957.3,2956.4,0.23187108]
[1769306388149,3.97007224,2957.2,2956.4,0.23187108]
[1769306388448,0.0038534,2957.3,2956.4,0.23187108]
[1769306388647,3.97010007,2957.2,2956.4,0.23187108]
[1769306388849,0.0038534,2957.3,2956.4,0.23187108]
[1769306389049,3.97007428,2957.2,2956.4,0.23187108]
[1769306389248,0.0038534,2957.3,2956.4,0.23187108]
[1769306389543,3.97009336,2957.2,2956.4,0.23187108]
[1769306389744,0.0038534,2957.3,2956.4,0.23187108]
[1769306389949,3.97009263,2957.2,2956.4,0.23187108]
[1769306390151,0.0038534,2957.3,2956.4,0.23187108]
[1769306390351,3.97017811,2957.2,2956.4,0.23187108]
[1769306390557,0.0038534,2957.3,2956.4,0.23187108]
[1769306390758,3.97018178,2957.2,2956.4,0.23187108]
[1769306390958,0.0038534,2957.3,2956.4,0.23187108]
[1769306391152,3.97018239,2957.2,2956.4,0.23187108]
[1769306391357,0.0038534,2957.3,2956.4,0.23187108]
[1769306391557,3.9701981,2957.2,2956.4,0.23187108]
[1769306391757,0.0038534,2957.3,2956.4,0.23187108]
[1769306391959,3.97018439,2957.2,2956.4,0.23187108]
[1769306392161,0.0038534,2957.3,2956.4,0.23187108]
[1769306392359,3.97022782,2957.2,2956.4,0.23187108]
[1769306392555,0.0038534,2957.3,2956.4,0.23187108]
[1769306392760,3.97022166,2957.2,2956.4,0.23187108]
[1769306392959,0.0038534,2957.3,2956.4,0.23187108]
[1769306393260,3.97021846,2957.2,2956.4,0.23187108]
[1769306393461,0.0038534,2957.3,2956.4,0.23187108]
[1769306393663,3.97022991,2957.2,2956.4,0.23187108]
[1769306393968,0.0038534,2957.3,2956.4,0.23187108]
[1769306394156,3.97025471,2957.2,2956.4,0.23187108]
[1769306394356,0.0038534,2957.3,2956.4,0.23187108]
[1769306394562,3.97034076,2957.2,2956.4,0.23187108]
[1769306394756,0.0038534,2957.3,2956.4,0.23187108]
[1769306394951,3.97034538,2957.2,2956.4,0.23187108]
[1769306395155,0.0038534,2957.3,2956.4,0.23187108]
[1769306395361,3.97043134,2957.2,2956.4,0.23187108]
[1769306395562,0.0038534,2957.3,2956.4,0.23187108]
[1769306395762,3.97043005,2957.2,2956.4,0.23187108]
[1769306395961,0.0038534,2957.3,2956.4,0.23187108]
[1769306396162,3.97043002,2957.2,2956.4,0.23187108]
[1769306396362,0.0038534,2957.3,2956.4,0.23187108]
[1769306396565,3.97052047,2957.2,2956.4,0.23187108]
[1769306396764,0.0038534,2957.3,2956.4,0.23187108]
[1769306397064,3.97051983,2957.2,2956.4,0.23187108]
[1769306397264,0.0038534,2957.3,2956.4,0.23187108]
[1769306397465,3.970636,2957.2,2956.4,0.23187108]
[1769306397767,0.0038534,2957.3,2956.4,0.23187108]
[1769306397959,3.97063429,2957.2,2956.4,0.23187108]
[1769306398268,0.0038534,2957.3,2956.4,0.23187108]
[1769306398468,3.97068478,2957.2,2956.4,0.23187108]
[1769306398764,0.0038534,2957.3,2956.4,0.23187108]
[1769306398962,3.97068802,2957.2,2956.4,0.23187108]
[1769306399163,0.0038534,2957.3,2956.4,0.23187108]
[1769306399462,3.97069224,2957.2,2956.4,0.23187108]
[1769306399658,0.0038534,2957.3,2956.4,0.23187108]
[1769306399966,3.97071283,2957.2,2956.4,0.23187108]
[1769306400166,0.0038534,2957.3,2956.4,0.23187108]
[1769306400367,3.97071026,2957.2,2956.4,0.23187108]
[1769306400567,0.0038534,2957.3,2956.4,0.23187108]
[1769306400767,3.97070849,2957.2,2956.4,0.23187108]
[1769306401066,0.0038534,2957.3,2956.4,0.23187108]
[1769306401268,3.9706404,2957.2,2956.4,0.23187108]
[1769306401461,0.0038534,2957.3,2956.4,0.23187108]
[1769306401662,3.97063527,2957.2,2956.4,0.23187108]
[1769306401860,3.97063527,2957.1,2956.4,0.23187108]
[1769306402066,0.0038534,2957.3,2956.4,0.23187108]
[1769306402262,3.97051397,2957.2,2956.4,0.23187108]
[1769306402463,3.97051397,2957.1,2956.4,0.23187108]
[1769306402662,0.0038534,2957.3,2956.4,0.23187108]
[1769306402862,3.97051556,2957.2,2956.4,0.23187108]
[1769306403066,3.97051556,2957.1,2956.4,0.23187108]
[1769306403265,0.0038534,2957.3,2956.4,0.23187108]
[1769306403465,0.77813497,2957.1,2956.4,0.23187108]
[1769306403669,0.77813497,2956.9,2955.5,0.77813497]
[1769306403866,3.96791651,2956.8,2955.5,0.77813497]
[1769306404168,0.77813497,2956.9,2955.5,0.77813497]
[1769306404569,0.77813497,2956.7,2955.4,0.16945]
[1769306405659,0.77813497,2956.7,2955.5,0.14239624]
[1769306405864,0.77813497,2956.7,2955.6,0.14239624]
[1769306406064,0.77813497,2957.1,2955.7,0.92053121]
[1769306406264,3.96234298,2957.0,2955.8,0.14239624]
[1769306406570,3.96234298,2956.9,2955.8,0.14239624]
[1769306406771,3.96234298,2956.8,2955.8,0.14239624]
[1769306406972,0.77813497,2957.1,2955.8,0.14239624]
[1769306407171,3.96235052,2957.0,2955.8,0.14239624]
[1769306407372,3.96235052,2956.9,2955.8,0.14239624]
[1769306407565,0.77813497,2957.1,2955.8,0.14239624]
[1769306407566,3.96235052,2956.8,2955.8,0.14239624]
[1769306407766,0.77813497,2957.1,2955.8,0.14239624]
[1769306407966,3.96143426,2957.0,2955.8,0.14239624]
[1769306408170,3.96143426,2956.9,2955.8,0.14239624]
[1769306408372,3.96143426,2956.8,2955.8,0.14239624]
[1769306408569,0.77813497,2957.1,2955.8,0.14239624]
[1769306408769,3.96055492,2957.0,2955.8,0.14239624]
[1769306408970,3.96055492,2956.9,2955.8,0.14239624]
[1769306409175,3.96055492,2956.8,2955.8,0.14239624]
[1769306409378,0.77813497,2957.1,2955.8,0.14239624]
[1769306409673,3.95996191,2957.0,2955.8,0.14239624]
[1769306409873,3.95996191,2956.9,2955.8,0.14239624]
[1769306410065,0.77813497,2957.1,2955.8,0.14239624]
[1769306410267,3.95945612,2957.0,2955.8,0.14239624]
[1769306410573,3.95945612,2956.9,2955.8,0.14239624]
[1769306410875,3.95949556,2956.8,2955.8,0.14239624]
[1769306411077,0.77813497,2957.1,2955.8,0.14239624]
[1769306411276,3.95904401,2957.0,2955.8,0.14239624]
[1769306411466,3.95904401,2956.9,2955.8,0.14239624]
[1769306411668,0.77813497,2957.1,2955.8,0.14239624]
[1769306411880,3.95904543,2957.0,2955.8,0.14239624]
[1769306412070,3.95904543,2956.9,2955.8,0.14239624]
[1769306412266,0.77813497,2957.1,2955.8,0.14239624]
[1769306412473,3.95870647,2957.0,2955.8,0.14239624]
[1769306412770,3.95870647,2956.9,2955.8,0.14239624]
[1769306412971,0.77813497,2957.1,2955.8,0.14239624]
[1769306413172,3.95870594,2957.0,2955.8,0.14239624]
[1769306413372,3.95870594,2956.9,2955.8,0.14239624]
[1769306413572,0.77813497,2957.1,2955.8,0.14239624]
[1769306413778,3.95846078,2957.0,2955.8,0.14239624]
[1769306413977,3.95846078,2956.9,2955.8,0.14239624]
[1769306414177,0.77813497,2957.1,2955.8,0.14239624]
[1769306414376,3.95826642,2957.0,2955.8,0.14239624]
[1769306414676,3.95826642,2956.9,2955.8,0.14239624]
[1769306414876,0.77813497,2957.1,2955.8,0.14239624]
[1769306415078,3.9582658,2957.0,2955.8,0.14239624]
[1769306415277,3.9582658,2956.9,2955.8,0.14239624]
[1769306415478,0.77813497,2957.1,2955.8,0.14239624]
[1769306415679,3.95811964,2957.0,2955.8,0.14239624]
[1769306415878,3.95811964,2956.9,2955.8,0.14239624]
[1769306416074,0.77813497,2957.1,2955.8,0.14239624]
[1769306416269,3.95801962,2957.0,2955.8,0.14239624]
[1769306416473,3.95801962,2956.9,2955.8,0.14239624]
[1769306416681,0.77813497,2957.1,2955.8,0.14239624]
[1769306416881,3.9580198,2957.0,2956.3,0.77813497]
[1769306417082,3.9580198,2956.9,2956.3,0.77813497]
[1769306417385,1.986,2957.1,2956.3,0.77813497]
[1769306417681,3.95792019,2957.0,2956.2,0.14332932]
[1769306417882,1.986,2957.1,2956.2,0.14332932]
[1769306418081,3.95793915,2957.0,2956.2,0.14332932]
[1769306418281,1.986,2957.1,2956.2,0.14332932]
[1769306418482,3.9580187,2957.0,2956.2,0.14332932]
[1769306418684,1.986,2957.1,2956.2,0.14332932]
[1769306418987,3.95801972,2957.0,2956.2,0.14332932]
[1769306419188,1.986,2957.1,2956.2,0.14332932]
[1769306419388,3.95796974,2957.0,2956.2,0.14332932]
[1769306419588,1.986,2957.1,2956.2,0.14332932]
[1769306419793,3.95796889,2957.0,2956.2,0.14332932]
[1769306420088,1.986,2957.1,2956.2,0.14332932]
[1769306420287,3.95811602,2957.0,2956.2,0.14332932]
[1769306420485,0.0038534,2957.3,2956.4,0.14332932]
[1769306420684,3.95834444,2957.2,2956.4,0.14332932]
[1769306420884,3.95834444,2957.1,2956.4,0.14332932]
[1769306421090,0.0038534,2957.3,2956.4,0.14332932]
[1769306421290,3.95857637,2957.2,2956.4,0.14332932]
[1769306421492,3.95857637,2957.1,2956.4,0.14332932]
[1769306421694,0.0038534,2957.3,2956.4,0.14332932]
[1769306421993,3.95857484,2957.2,2956.4,0.14332932]
[1769306422194,3.95857484,2957.1,2956.4,0.14332932]
[1769306422390,0.0038534,2957.3,2956.4,0.14332932]
[1769306422590,3.95887972,2957.2,2956.4,0.14332932]
[1769306422894,3.95887972,2957.1,2956.4,0.14332932]
[1769306423194,0.0038534,2957.3,2956.4,0.14332932]
[1769306423396,3.95900071,2957.2,2956.4,0.14332932]
[1769306423595,3.95900071,2957.1,2956.4,0.14332932]
[1769306423797,0.0038534,2957.3,2956.4,0.14332932]
[1769306423996,3.9590116,2957.2,2956.4,0.14332932]
[1769306424196,3.9590116,2957.1,2956.4,0.14332932]
[1769306424488,0.0038534,2957.3,2956.4,0.14332932]
[1769306424689,3.95940018,2957.2,2956.4,0.14332932]
[1769306424987,3.95940018,2957.1,2956.4,0.14332932]
[1769306425182,0.0038534,2957.3,2956.4,0.14332932]
[1769306425387,3.95980664,2957.2,2956.4,0.14332932]
[1769306425686,3.95980664,2957.1,2956.4,0.14332932]
[1769306425886,0.0038534,2957.3,2956.4,0.14332932]
[1769306426086,3.95981516,2957.2,2956.4,0.14332932]
[1769306426288,3.95981516,2957.1,2956.4,0.14332932]
[1769306426490,0.0038534,2957.3,2956.4,0.14332932]
[1769306426686,3.96027152,2957.2,2956.4,0.14332932]
[1769306426893,3.96027152,2957.1,2956.4,0.14332932]
[1769306427094,0.0038534,2957.3,2956.4,0.14332932]
[1769306427295,3.96078267,2957.2,2956.4,0.14332932]
[1769306427491,3.96078267,2957.1,2956.4,0.14332932]
[1769306427693,0.0038534,2957.3,2956.4,0.14332932]
[1769306427991,3.96075801,2957.2,2956.4,0.14332932]
[1769306428189,3.96075801,2957.1,2956.4,0.14332932]
[1769306428394,3.96075801,2957.0,2956.4,0.14332932]
[1769306428595,0.0038534,2957.3,2956.4,0.14332932]
[1769306428795,3.96134167,2957.2,2956.4,0.14332932]
[1769306428996,3.96134167,2957.1,2956.4,0.14332932]
[1769306429197,3.96134167,2957.0,2956.4,0.14332932]
[1769306429397,0.0038534,2957.3,2956.4,0.14332932]
[1769306429598,3.96189306,2957.2,2956.4,0.14332932]
[1769306429796,3.96189306,2957.1,2956.4,0.14332932]
[1769306430098,3.96189306,2957.0,2956.4,0.14332932]
[1769306430298,0.0038534,2957.3,2956.4,0.14332932]
[1769306430599,0.0038534,2957.3,2956.6,0.14332932]
[1769306433996,0.0038534,2957.3,2956.7,0.91834954]
[1769306434198,2.031,2957.7,2956.7,0.91834954]
[1769306434386,3.96418355,2957.6,2956.7,0.91834954]
[1769306434586,3.96418355,2957.5,2956.7,0.91834954]
[1769306434797,2.031,2957.7,2956.7,0.91834954]
[1769306435001,3.96426592,2957.6,2956.7,0.91834954]
[1769306435197,0.00425371,2957.6,2956.7,0.91834954]
[1769306437997,0.00425371,2957.6,2956.8,0.14021457]
[1769306443202,0.00425371,2957.6,2956.9,0.91834954]
[1769306444702,0.00425371,2957.6,2956.9,0.14021457]
[1769306459224,3.9668658,2957.5,2956.9,0.14021457]
[1769306459419,0.00425371,2957.6,2956.9,0.14021457]
[1769306459624,3.96686573,2957.5,2956.9,0.14021457]
[1769306459820,0.00425371,2957.6,2956.9,0.14021457]
[1769306460020,3.96686467,2957.5,2956.9,0.14021457]
[1769306460218,0.00425371,2957.6,2956.9,0.14021457]
[1769306460414,3.96910173,2957.5,2956.9,0.14021457]
[1769306460617,0.00425371,2957.6,2956.9,0.14021457]
[1769306460823,3.96909756,2957.5,2956.9,0.14021457]
[1769306461022,0.00425371,2957.6,2956.9,0.14021457]
[1769306461226,3.96939356,2957.5,2956.9,0.14021457]
[1769306461425,0.00425371,2957.6,2956.9,0.14021457]
[1769306461625,3.96944077,2957.5,2956.9,0.14021457]
[1769306461826,0.00425371,2957.6,2956.9,0.14021457]
[1769306462028,3.96944283,2957.5,2956.9,0.14021457]
[1769306462331,0.00425371,2957.6,2956.9,0.14021457]
[1769306462622,0.00425371,2957.6,2957.1,0.77813497]
[1769306462825,1.986,2958.4,2957.4,0.13994996]
[1769306463032,3.95594381,2958.3,2957.4,0.13994996]
[1769306463326,3.95594381,2958.2,2957.4,0.13994996]
[1769306463528,3.95594381,2958.1,2957.4,0.13994996]
[1769306463727,3.95594381,2958.0,2957.4,0.14280249]
[1769306464030,3.95594381,2957.9,2957.4,0.14280249]
[1769306464219,0.00421929,2958.1,2957.4,0.14280249]
[1769306464422,3.95320368,2958.0,2957.4,0.14280249]
[1769306464626,0.00421929,2958.1,2957.4,0.14280249]
[1769306464827,3.9531873,2958.0,2957.4,0.14280249]
[1769306465127,0.00421929,2958.1,2957.4,0.14280249]
[1769306465320,3.95314527,2958.0,2957.4,0.14280249]
[1769306465521,0.00421929,2958.1,2957.4,0.14280249]
[1769306465720,3.95225646,2958.0,2957.4,0.14280249]
[1769306465925,0.00421929,2958.1,2957.4,0.14280249]
[1769306466125,3.95226027,2958.0,2957.4,0.14280249]
[1769306466328,0.00421929,2958.1,2957.4,0.14280249]
[1769306466628,3.95154968,2958.0,2957.4,0.14280249]
[1769306466827,0.00421929,2958.1,2957.4,0.14280249]
[1769306467027,3.95155069,2958.0,2957.4,0.14280249]
[1769306467229,0.00421929,2958.1,2957.4,0.14280249]
[1769306467430,3.95096278,2958.0,2957.4,0.14280249]
[1769306467623,0.00421929,2958.1,2957.4,0.14280249]
[1769306467821,3.95096226,2958.0,2957.4,0.14280249]
[1769306468027,0.00421929,2958.1,2957.4,0.14280249]
[1769306468227,3.9509044,2958.0,2957.4,0.14280249]
[1769306468424,0.00421929,2958.1,2957.4,0.14280249]
[1769306468728,3.95048996,2958.0,2957.4,0.14280249]
[1769306468929,0.00421929,2958.1,2957.4,0.14280249]
[1769306469131,3.95047939,2958.0,2957.4,0.14280249]
[1769306469426,0.00421929,2958.1,2957.4,0.14280249]
[1769306469628,3.95007953,2958.0,2957.4,0.14280249]
[1769306469930,0.00421929,2958.1,2957.4,0.14280249]
[1769306470129,3.95007811,2958.0,2957.4,0.14280249]
[1769306470331,0.00421929,2958.1,2957.4,0.14280249]
[1769306478531,1.986,2958.7,2957.4,0.14280249]
[1769306478730,3.94818655,2958.6,2957.4,0.14280249]
[1769306478930,3.94818655,2958.5,2957.4,0.14280249]
[1769306479225,3.94818655,2958.4,2957.4,0.14280249]
[1769306479425,3.94818655,2958.3,2957.4,0.14280249]
[1769306479731,0.00388332,2958.3,2957.4,0.14280249]
[1769306515155,6.25118476,2959.4,2957.4,0.14280249]
[1769306515357,5.88337206,2959.3,2957.4,0.14280249]
[1769306515555,3.89737206,2959.2,2957.4,0.14280249]
[1769306516154,3.90145346,2959.2,2957.4,0.14280249]
[1769306516353,3.89737206,2959.1,2957.4,0.14280249]
[1769306517453,1.987,2959.0,2957.4,0.14280249]
[1769306517652,3.89737206,2958.9,2957.4,0.14280249]
[1769306517853,3.89737206,2958.8,2957.4,0.14280249]
[1769306518044,3.89737206,2958.7,2957.4,0.14280249]
[1769306518245,1.987,2959.0,2957.4,0.14280249]
[1769306518449,3.89546614,2958.9,2957.4,0.14280249]
[1769306518650,3.89546614,2958.8,2957.4,0.14280249]
[1769306518957,3.89546614,2958.7,2957.4,0.14280249]
[1769306519158,1.987,2959.0,2957.4,0.14280249]
[1769306519359,3.89546914,2958.9,2957.4,0.14280249]
[1769306519552,3.89546914,2958.8,2957.4,0.14280249]
[1769306519751,3.89546914,2958.7,2957.5,0.14063418]
[1769306519952,1.986,2959.1,2957.5,0.14063418]
[1769306520153,3.89495816,2959.0,2957.5,0.14063418]
[1769306520353,3.89495816,2958.9,2957.5,0.14063418]
[1769306520554,3.89495816,2958.8,2957.5,0.14063418]
[1769306520852,3.89495816,2958.7,2957.5,0.14063418]
[1769306521054,1.986,2959.1,2957.5,0.14063418]
[1769306521254,3.89490484,2959.0,2957.5,0.14063418]
[1769306521456,3.89490484,2958.9,2957.5,0.14063418]
[1769306521659,3.89490484,2958.8,2957.5,0.14063418]
[1769306521862,1.986,2959.1,2957.5,0.14063418]
[1769306522058,3.89430533,2959.0,2957.5,0.14063418]
[1769306522258,3.89430533,2958.9,2957.5,0.14063418]
[1769306522459,3.89430533,2958.8,2957.5,0.14063418]
[1769306522660,1.986,2959.1,2957.5,0.14063418]
[1769306522857,3.89380034,2959.0,2958.0,0.13992813]
[1769306523162,3.89380034,2958.9,2958.0,0.13992813]
[1769306523355,3.89380034,2958.8,2958.0,0.13992813]
[1769306523556,1.986,2959.1,2958.0,0.13992813]
[1769306523757,3.88274448,2959.0,2958.0,0.13992813]
[1769306524064,3.88274448,2958.9,2958.0,0.13992813]
[1769306524259,3.88274448,2958.8,2958.0,0.13992813]
[1769306524465,1.986,2959.1,2958.0,0.13992813]
[1769306524658,3.88314482,2959.0,2958.0,0.13992813]
[1769306524858,3.88314482,2958.9,2958.0,0.13992813]
[1769306525060,3.88314482,2958.8,2958.0,0.13992813]
[1769306525357,3.88314482,2958.7,2958.0,0.13992813]
[1769306525558,1.986,2959.1,2958.0,0.13992813]
[1769306525754,3.88295752,2959.0,2958.0,0.13992813]
[1769306525959,3.88295752,2958.9,2958.0,0.13992813]
[1769306526159,3.88295752,2958.8,2958.0,0.13992813]
[1769306526361,3.88295752,2958.7,2958.0,0.13992813]
[1769306526560,1.992,2959.1,2958.0,0.13992813]
[1769306526762,3.88275701,2959.0,2958.0,0.13992813]
[1769306526967,3.88275701,2958.9,2958.0,0.13992813]
[1769306527162,3.88275701,2958.8,2958.0,0.13992813]
[1769306527457,3.88275701,2958.7,2958.0,0.13992813]
[1769306527659,1.992,2959.1,2958.0,0.13992813]
[1769306527957,3.88260414,2959.0,2958.0,0.13992813]
[1769306528159,3.88260414,2958.9,2958.0,0.13992813]
[1769306528459,3.88260414,2958.8,2958.0,0.13992813]
[1769306528660,1.992,2959.1,2958.0,0.13992813]
[1769306528864,3.88260956,2959.0,2958.1,0.91717509]
[1769306529170,3.88260956,2958.9,2958.2,0.13992813]
[1769306529362,1.9890814,2959.2,2958.2,0.13992813]
[1769306529564,3.88281371,2959.1,2958.2,0.13992813]
[1769306529867,3.88281371,2959.0,2958.2,0.13992813]
[1769306530060,3.88281371,2958.9,2958.2,0.13992813]
[1769306530263,1.9890814,2959.2,2958.2,0.13992813]
[1769306530462,3.88270716,2959.1,2958.2,0.13992813]
[1769306530663,3.88270716,2959.0,2958.2,0.13992813]
[1769306530866,3.88270716,2958.9,2958.2,0.13992813]
[1769306531063,1.9890814,2959.2,2958.2,0.13992813]
[1769306531263,3.88248482,2959.1,2958.2,0.13992813]
[1769306531465,3.88248482,2959.0,2958.2,0.13992813]
[1769306531765,3.88248482,2958.9,2958.2,0.13992813]
[1769306532064,0.77724696,2959.1,2958.2,0.13992813]
[1769306532266,3.88237599,2959.0,2958.2,0.13992813]
[1769306532464,3.88237599,2958.9,2958.2,0.13992813]
[1769306532666,3.88237599,2958.8,2958.2,0.13992813]
[1769306532975,0.77724696,2959.1,2958.2,0.13992813]
[1769306533165,3.88246642,2959.0,2958.2,0.13992813]
[1769306533367,3.88246642,2958.9,2958.2,0.13992813]
[1769306533567,3.88246642,2958.8,2958.2,0.13992813]
[1769306533768,0.77724696,2959.1,2958.2,0.13992813]
[1769306533969,3.88250566,2959.0,2958.2,0.13992813]
[1769306534167,3.88250566,2958.9,2958.2,0.13992813]
[1769306534371,3.88250566,2958.8,2958.2,0.13992813]
[1769306534664,0.77724696,2959.1,2958.2,0.13992813]
[1769306534871,3.88258849,2959.0,2958.2,0.13992813]
[1769306535174,3.88258849,2958.9,2958.2,0.13992813]
[1769306535374,0.77724696,2959.1,2958.2,0.13992813]
[1769306535566,3.88271585,2959.0,2958.2,0.13992813]
[1769306535766,3.88271585,2958.9,2958.2,0.13992813]
[1769306535972,0.77724696,2959.1,2958.2,0.13992813]
[1769306536171,3.882757,2959.0,2958.2,0.13992813]
[1769306536371,0.77724696,2959.1,2958.2,0.13992813]
[1769306536372,3.882757,2958.9,2958.2,0.13992813]
[1769306536574,0.77724696,2959.1,2958.2,0.13992813]
[1769306536774,3.88294776,2959.0,2958.2,0.13992813]
[1769306536971,3.88294776,2958.9,2958.2,0.13992813]
[1769306537171,0.77724696,2959.1,2958.2,0.13992813]
[1769306537370,3.88297581,2959.0,2958.2,0.13992813]
[1769306537573,3.88297581,2958.9,2957.9,0.13968979]